fUSD/lending_fUSD_20260227
["ID","MTS","AMOUNT","RATE_DAILY","PERIOD"]
[406818364,1772206269443,-194.25089873,0.00046135,120]
[406818365,1772206269453,-500.0,0.00046135,120]
[406818366,1772206269462,-500.0,0.00046135,120]
[406818367,1772206269472,-500.0,0.00046135,120]
[406818368,1772206269481,-500.0,0.00046135,120]
[406818369,1772206269490,-500.0,0.00046135,120]
[406818370,1772206269502,-156.0,0.000462,120]
[406818371,1772206269512,-150.0,0.00046495,120]
[406818372,1772206269522,-153.087449,0.00046573,120]
[406818373,1772206269531,-298.6693447,0.00046575,2]
[406818374,1772206269540,-1488.33,0.000466,30]
[406818375,1772206269549,-497.04,0.000468,120]
[406818376,1772206269559,-926.0,0.000473,30]
[406818377,1772206269568,-152.8213546,0.00047594,120]
[406818378,1772206269577,-153.087449,0.00047682,120]
[406818379,1772206269587,-497.04,0.00047966,120]
[406818380,1772206269596,-1488.33,0.000481,30]
[406818381,1772206269605,-1097.67,0.000481,14]
[406818382,1772206269616,-685.01,0.000481,14]
[406818383,1772206269625,-156.0,0.000482,120]
[406818384,1772206269634,-2000.0,0.000486,2]
[406818385,1772206269644,-153.087449,0.00048791,120]
[406818386,1772206269653,-541.3,0.00048798,120]
[406818387,1772206269663,-150.0,0.0004882,120]
[406818388,1772206269672,-497.04,0.00049131,120]
[406818389,1772206269681,-350.0,0.00049136,8]
[406818390,1772206269690,-500.0,0.00049315,120]
[406818391,1772206269699,-500.0,0.00049315,120]
[406818392,1772206269708,-500.0,0.00049589,120]
[406818393,1772206269718,-1488.33,0.000497,30]
[406818394,1772206269728,-500.0,0.00049856,60]
[406818395,1772206269737,-500.0,0.00049856,60]
[406818396,1772206269747,-500.0,0.00049856,60]
[406818397,1772206269757,-380.57199487,0.00049863,120]
[406818398,1772206269767,-1783.25363654,0.00049874,120]
[406818399,1772206269776,-313.29947845,0.00049892,120]
[406818400,1772206269785,-153.08,0.000499,120]
[406818401,1772206269795,-179.28,0.000499,120]
[406818402,1772206269804,-4799.34212234,0.000499,2]
[406818403,1772206269813,-2195.67203992,0.000499,28]
[406818404,1772206269823,-150.0,0.00049973,30]
[406818405,1772206269832,-176.22011371,0.00049973,30]
[406818406,1772206269841,-172.00374903,0.00049973,30]
[406818407,1772206269850,-150.0,0.00049973,30]
[406818408,1772206269860,-150.0,0.00049973,30]
[406818409,1772206269991,-150.0,0.00049973,30]
[406818410,1772206270002,-150.0,0.00049973,30]
[406818411,1772206270011,-150.0,0.00049973,30]
[406818412,1772206270020,-150.0,0.00049973,30]
[406818413,1772206270030,-150.0,0.00049973,30]
[406818414,1772206270039,-150.0,0.00049973,30]
[406818415,1772206270049,-150.0,0.00049973,30]
[406818416,1772206270058,-150.0,0.00049973,30]
[406818417,1772206270067,-150.0,0.00049973,30]
[406818418,1772206270076,-150.0,0.00049973,30]
[406818419,1772206270087,-150.0,0.00049973,30]
[406818420,1772206270100,-150.0,0.00049973,30]
[406818421,1772206270109,-90851.0790885,0.00049974,2]
[406818422,1772206270119,-22334.3130248,0.00049974,2]
[406818423,1772206270128,-200.0,0.00049999,120]
[406818424,1772206270139,-200.0,0.00049999,120]
[406818425,1772206270148,-200.0,0.00049999,120]
[406818426,1772206270158,-200.0,0.00049999,120]
[406818427,1772206270168,-200.0,0.00049999,120]
[406818428,1772206270178,-200.0,0.00049999,120]
[406818429,1772206270187,-200.0,0.00049999,120]
[406818430,1772206270196,-202.72622012,0.00049999,120]
[406818431,1772206270205,-500.0,0.00049999,120]
[406818432,1772206270215,-500.0,0.00049999,120]
[406818433,1772206270224,-200.0,0.00049999,40]
[406818434,1772206270233,-500.0,0.00049999,120]
[406818435,1772206270242,-518.5,0.00049999,120]
[406818436,1772206270251,-207.4,0.00049999,40]
[406818437,1772206270261,-537.6845,0.00049999,120]
[406818438,1772206270270,-500.0,0.00049999,120]
[406818439,1772206270280,-215.0738,0.00049999,40]
[406818440,1772206270290,-500.0,0.00049999,120]
[406818441,1772206270300,-557.5788265,0.00049999,120]
[406818442,1772206270309,-223.0315306,0.00049999,40]
[406818443,1772206270319,-500.0,0.00049999,120]
[406818444,1772206270328,-578.20924308,0.00049999,120]
[406818445,1772206270337,-231.28369723,0.00049999,40]
[406818446,1772206270347,-500.0,0.00049999,120]
[406818447,1772206270356,-500.0,0.00049999,120]
[406818448,1772206270366,-599.60298507,0.00049999,120]
[406818449,1772206270376,-239.84119403,0.00049999,40]
[406818450,1772206270385,-500.0,0.00049999,120]
[406818451,1772206270396,-248.71531821,0.00049999,40]
[406818452,1772206270405,-500.0,0.00049999,120]
[406818453,1772206270414,-500.0,0.00049999,120]
[406818454,1772206270424,-621.78829552,0.00049999,120]
[406818455,1772206270434,-500.0,0.00049999,120]
[406818456,1772206270446,-257.91778498,0.00049999,40]
[406818457,1772206270455,-500.0,0.00049999,120]
[406818458,1772206270465,-411.77074813,0.00049999,120]
[406818459,1772206270474,-500.0,0.00049999,120]
[406818460,1772206270483,-500.0,0.00049999,120]
[406818461,1772206270493,-267.46074303,0.00049999,40]
[406818462,1772206270504,-500.0,0.00049999,120]
[406818463,1772206270513,-500.0,0.00049999,120]
[406818464,1772206270523,-500.0,0.00049999,120]
[406818465,1772206270533,-277.35679052,0.00049999,40]
[406818466,1772206270542,-500.0,0.00049999,120]
[406818467,1772206270552,-500.0,0.00049999,120]
[406818468,1772206270563,-500.0,0.00049999,120]
[406818469,1772206270573,-287.61899177,0.00049999,40]
[406818470,1772206270582,-500.0,0.00049999,120]
[406818471,1772206270592,-500.0,0.00049999,120]
[406818472,1772206270602,-500.0,0.00049999,120]
[406818473,1772206270612,-298.26089446,0.00049999,40]
[406818474,1772206270623,-500.0,0.00049999,120]
[406818475,1772206270632,-500.0,0.00049999,120]
[406818476,1772206270642,-309.29654756,0.00049999,40]
[406818477,1772206270652,-500.0,0.00049999,120]
[406818478,1772206270661,-500.0,0.00049999,120]
[406818479,1772206270671,-500.0,0.00049999,120]
[406818480,1772206270680,-151.0,0.00049999,120]
[406818481,1772206270695,-500.0,0.00049999,120]
[406818482,1772206270704,-500.0,0.00049999,120]
[406818483,1772206270714,-320.74051982,0.00049999,40]
[406818484,1772206270723,-500.0,0.00049999,120]
[406818485,1772206270733,-151.0,0.00049999,120]
[406818486,1772206270742,-500.0,0.00049999,120]
[406818487,1772206270752,-332.60791905,0.00049999,40]
[406818488,1772206270761,-500.0,0.00049999,120]
[406818489,1772206270770,-500.0,0.00049999,120]
[406818490,1772206270779,-151.0,0.00049999,120]
[406818491,1772206270788,-324.94565365,0.00049999,120]
[406818492,1772206270797,-500.0,0.00049999,120]
[406818493,1772206270806,-344.91441206,0.00049999,40]
[406818494,1772206270815,-500.0,0.00049999,120]
[406818495,1772206270824,-151.0,0.00049999,120]
[406818496,1772206270833,-500.0,0.00049999,120]
[406818497,1772206270842,-500.0,0.00049999,120]
[406818498,1772206270851,-357.6762453,0.00049999,40]
[406818499,1772206270859,-151.0,0.00049999,120]
[406818500,1772206270868,-500.0,0.00049999,120]
[406818501,1772206270877,-492.26205187,0.00049999,40]
[406818502,1772206270886,-500.0,0.00049999,120]
[406818503,1772206270895,-151.0,0.00049999,120]
[406818504,1772206270904,-250.0,0.00049999,120]
[406818505,1772206270913,-500.0,0.00049999,120]
[406818506,1772206270923,-500.0,0.00049999,120]
[406818507,1772206270932,-151.0,0.00049999,120]
[406818508,1772206270942,-250.0,0.00049999,120]
[406818509,1772206270951,-500.0,0.00049999,120]
[406818510,1772206270960,-151.0,0.00049999,120]
[406818511,1772206270969,-250.0,0.00049999,120]
[406818512,1772206270978,-500.0,0.00049999,120]
[406818513,1772206270989,-151.0,0.00049999,120]
[406818514,1772206270998,-250.0,0.00049999,120]
[406818515,1772206271007,-500.0,0.00049999,120]
[406818516,1772206271016,-151.0,0.00049999,120]
[406818517,1772206271025,-250.0,0.00049999,120]
[406818518,1772206271034,-500.0,0.00049999,120]
[406818519,1772206271043,-151.0,0.00049999,120]
[406818520,1772206271052,-250.0,0.00049999,120]
[406818521,1772206271062,-500.0,0.00049999,120]
[406818522,1772206271071,-151.0,0.00049999,120]
[406818523,1772206271081,-256.63658865,0.00049999,120]
[406818524,1772206271095,-500.0,0.00049999,120]
[406818525,1772206271104,-151.0,0.00049999,120]
[406818526,1772206271113,-151.0,0.00049999,120]
[406818527,1772206271122,-500.0,0.00049999,120]
[406818528,1772206271134,-151.0,0.00049999,120]
[406818529,1772206271143,-156.587,0.00049999,120]
[406818530,1772206271153,-500.0,0.00049999,120]
[406818531,1772206271162,-151.0,0.00049999,120]
[406818532,1772206271172,-162.380719,0.00049999,120]
[406818533,1772206271182,-500.0,0.00049999,120]
[406818534,1772206271191,-500.0,0.00049999,120]
[406818535,1772206271201,-151.0,0.00049999,120]
[406818536,1772206271210,-168.3888056,0.00049999,120]
[406818537,1772206271222,-500.0,0.00049999,120]
[406818538,1772206271231,-500.0,0.00049999,120]
[406818539,1772206271241,-174.61919141,0.00049999,120]
[406818540,1772206271250,-500.0,0.00049999,120]
[406818541,1772206271259,-151.0,0.00049999,120]
[406818542,1772206271268,-518.5,0.00049999,120]
[406818543,1772206271277,-181.08010149,0.00049999,120]
[406818544,1772206271287,-500.0,0.00049999,120]
[406818545,1772206271298,-537.6845,0.00049999,120]
[406818546,1772206271307,-187.78006525,0.00049999,120]
[406818547,1772206271317,-500.0,0.00049999,120]
[406818548,1772206271327,-557.5788265,0.00049999,120]
[406818549,1772206271336,-194.72792766,0.00049999,120]
[406818550,1772206271346,-151.0,0.00049999,120]
[406818551,1772206271355,-500.0,0.00049999,120]
[406818552,1772206271366,-578.20924308,0.00049999,120]
[406818553,1772206271375,-250.0,0.00049999,120]
[406818554,1772206271385,-201.93286099,0.00049999,120]
[406818555,1772206271395,-500.0,0.00049999,120]
[406818556,1772206271404,-151.0,0.00049999,120]
[406818557,1772206271413,-250.0,0.00049999,120]
[406818558,1772206271422,-599.60298507,0.00049999,120]
[406818559,1772206271431,-209.40437684,0.00049999,120]
[406818560,1772206271440,-500.0,0.00049999,120]
[406818561,1772206271450,-151.0,0.00049999,120]
[406818562,1772206271459,-621.78829552,0.00049999,120]
[406818563,1772206271469,-250.0,0.00049999,120]
[406818564,1772206271479,-217.15233878,0.00049999,120]
[406818565,1772206271488,-500.0,0.00049999,120]
[406818566,1772206271498,-250.0,0.00049999,120]
[406818567,1772206271507,-644.79446246,0.00049999,120]
[406818568,1772206271516,-225.18697532,0.00049999,120]
[406818569,1772206271527,-500.0,0.00049999,120]
[406818570,1772206271536,-250.0,0.00049999,120]
[406818571,1772206271546,-668.65185757,0.00049999,120]
[406818572,1772206271555,-233.51889341,0.00049999,120]
[406818573,1772206271565,-500.0,0.00049999,120]
[406818574,1772206271574,-250.0,0.00049999,120]
[406818575,1772206271583,-693.3919763,0.00049999,120]
[406818576,1772206271593,-242.15909246,0.00049999,120]
[406818577,1772206271602,-500.0,0.00049999,120]
[406818578,1772206271612,-250.0,0.00049999,120]
[406818579,1772206271622,-719.04747942,0.00049999,120]
[406818580,1772206271632,-251.11897888,0.00049999,120]
[406818581,1772206271641,-500.0,0.00049999,120]
[406818582,1772206271650,-250.0,0.00049999,120]
[406818583,1772206271660,-745.65223616,0.00049999,120]
[406818584,1772206271669,-260.4103811,0.00049999,120]
[406818585,1772206271679,-500.0,0.00049999,120]
[406818586,1772206271688,-250.0,0.00049999,120]
[406818587,1772206271698,-773.2413689,0.00049999,120]
[406818588,1772206271708,-270.0455652,0.00049999,120]
[406818589,1772206271717,-500.0,0.00049999,120]
[406818590,1772206271726,-250.0,0.00049999,120]
[406818591,1772206271735,-801.85129955,0.00049999,120]
[406818592,1772206271744,-500.0,0.00049999,120]
[406818593,1772206271754,-250.0,0.00049999,120]
[406818594,1772206271763,-280.03725112,0.00049999,120]
[406818595,1772206271772,-831.51979763,0.00049999,120]
[406818596,1772206271781,-500.0,0.00049999,120]
[406818597,1772206271790,-250.0,0.00049999,120]
[406818598,1772206271800,-290.39862941,0.00049999,120]
[406818599,1772206271809,-862.28603014,0.00049999,120]
[406818600,1772206271818,-500.0,0.00049999,120]
[406818601,1772206271828,-250.0,0.00049999,120]
[406818602,1772206271837,-301.1433787,0.00049999,120]
[406818603,1772206271846,-894.19061326,0.00049999,120]
[406818604,1772206271855,-500.0,0.00049999,120]
[406818605,1772206271864,-250.0,0.00049999,120]
[406818606,1772206271873,-927.27566595,0.00049999,120]
[406818607,1772206271883,-500.0,0.00049999,120]
[406818608,1772206271892,-250.0,0.00049999,120]
[406818609,1772206271902,-961.58486559,0.00049999,120]
[406818610,1772206271911,-250.0,0.00049999,120]
[406818611,1772206271920,-997.16350561,0.00049999,120]
[406818612,1772206271929,-250.0,0.00049999,120]
[406818613,1772206271939,-250.0,0.00049999,120]
[406818614,1772206271949,-250.0,0.00049999,120]
[406818615,1772206271958,-250.0,0.00049999,120]
[406818616,1772206271968,-151.0,0.00049999,120]
[406818617,1772206271977,-151.0,0.00049999,120]
[406818618,1772206271986,-151.0,0.00049999,120]
[406818619,1772206271995,-151.0,0.00049999,120]
[406818620,1772206272003,-151.0,0.00049999,120]
[406818621,1772206272012,-151.0,0.00049999,120]
[406818622,1772206272021,-151.0,0.00049999,120]
[406818623,1772206272030,-151.0,0.00049999,120]
[406818624,1772206272038,-151.0,0.00049999,120]
[406818625,1772206272049,-151.0,0.00049999,120]
[406818626,1772206272058,-151.0,0.00049999,120]
[406818627,1772206272067,-151.0,0.00049999,120]
[406818628,1772206272076,-151.0,0.00049999,120]
[406818629,1772206272086,-151.0,0.00049999,120]
[406818630,1772206272097,-151.0,0.00049999,120]
[406818631,1772206272107,-151.0,0.00049999,120]
[406818632,1772206272116,-151.0,0.00049999,120]
[406818633,1772206272125,-151.0,0.00049999,120]
[406818634,1772206272135,-151.0,0.00049999,120]
[406818635,1772206272145,-151.0,0.00049999,120]
[406818636,1772206272154,-500.0,0.00049999,120]
[406818637,1772206272163,-500.0,0.00049999,120]
[406818638,1772206272280,-500.0,0.00049999,120]
[406818639,1772206272291,-500.0,0.00049999,120]
[406818640,1772206272300,-500.0,0.00049999,120]
[406818641,1772206272310,-500.0,0.00049999,120]
[406818642,1772206272319,-500.0,0.00049999,120]
[406818643,1772206272328,-500.0,0.00049999,120]
[406818644,1772206272338,-500.0,0.00049999,120]
[406818645,1772206272347,-500.0,0.00049999,120]
[406818646,1772206272356,-500.0,0.00049999,120]
[406818647,1772206272365,-500.0,0.00049999,120]
[406818648,1772206272375,-500.0,0.00049999,120]
[406818649,1772206272384,-500.0,0.00049999,120]
[406818650,1772206272393,-500.0,0.00049999,120]
[406818651,1772206272403,-500.0,0.00049999,120]
[406818652,1772206272412,-500.0,0.00049999,120]
[406818653,1772206272421,-500.0,0.00049999,120]
[406818654,1772206272430,-500.0,0.00049999,120]
[406818655,1772206272439,-500.0,0.00049999,120]
[406818656,1772206272449,-500.0,0.00049999,120]
[406818657,1772206272458,-500.0,0.00049999,120]
[406818658,1772206272467,-500.0,0.00049999,120]
[406818659,1772206272478,-500.0,0.00049999,120]
[406818660,1772206272487,-500.0,0.00049999,120]
[406818661,1772206272496,-500.0,0.00049999,120]
[406818662,1772206272505,-500.0,0.00049999,120]
[406818663,1772206272514,-500.0,0.00049999,120]
[406818664,1772206272523,-500.0,0.00049999,120]
[406818665,1772206272533,-500.0,0.00049999,120]
[406818666,1772206272542,-500.0,0.00049999,120]
[406818667,1772206272551,-500.0,0.00049999,120]
[406818668,1772206272562,-500.0,0.00049999,120]
[406818669,1772206272572,-500.0,0.00049999,120]
[406818670,1772206272581,-500.0,0.00049999,120]
[406818671,1772206272591,-500.0,0.00049999,120]
[406818672,1772206272600,-500.0,0.00049999,120]
[406818673,1772206272609,-500.0,0.00049999,120]
[406818674,1772206272619,-500.0,0.00049999,120]
[406818675,1772206272628,-183.50003222,0.00049999,30]
[406818676,1772206272637,-1917.92108292,0.0005,120]
[406818677,1772206272647,-549411.99221221,0.0005,56]
[406818678,1772206272657,-243869.45356646,0.0005,120]
[406818679,1772206272666,-1000000.0,0.0005,120]
[406818680,1772206272675,-755363.73229512,0.0005,120]
[406818681,1772206273004,-1340.0,0.00036475,2]
[406818682,1772206273014,-500.0,0.00046135,120]
[406818683,1772206273024,-517.09579477,0.00046135,120]
[406818684,1772206273033,-501.75154919,0.00046135,120]
[406818685,1772206273044,-29.62282035,0.00046135,120]
[406818686,1772206273054,-500.0,0.00049999,120]
[406818687,1772206273063,-1179.19852823,0.0005,120]
[406818688,1772206273075,-243457.06917665,0.0005,120]
[406818689,1772206273086,-1000000.0,0.0005,120]
[406818690,1772206273098,-542368.70205995,0.0005,120]
[406818691,1772206273110,-457631.29794005,0.0005,120]
[406818692,1772206273120,-646503.70205995,0.0005,120]
[406818693,1772206273134,-91438.44669637,0.0005,120]
[406818694,1772206273146,-1539.79817392,0.0005,120]
[406818695,1772206273157,-1035.09887345,0.0005,120]
[406818696,1772206273198,-500.0,0.00046135,120]
[406818697,1772206273208,-500.0,0.00046135,120]
[406818698,1772206273218,-2089.42549888,0.0005,120]
[406818699,1772206273230,-1127.07574042,0.0005,120]
[406818700,1772206273246,-466.38255,0.0005,120]
[406818701,1772206273257,-677.38577018,0.0005,120]
[406818702,1772206273269,-39980.00000006,0.0005,120]
[406818703,1772206273287,-256.38553804,9.949e-05,2]
[406818704,1772206273297,-7621.10547777,0.0005,120]
[406818755,1772207235965,200.0,8.7e-05,3]
[406818756,1772207238054,400.0,8.8e-05,3]
[406818757,1772207240154,600.0,8.9e-05,3]
[406818758,1772207242249,800.0,9e-05,3]
[406818760,1772207422997,1235.6,7.725e-05,2]
[406818764,1772207431676,-219.0,8.219e-05,2]
[406818765,1772207431687,-1000.0,8.219e-05,2]
[406818766,1772207431697,-294.45170073,8.222e-05,2]
[406818767,1772207431707,-5.34025739,8.227e-05,2]
[406818768,1772207431719,-950.69681676,8.227e-05,2]
[406818769,1772207431731,-2000.00000001,8.227e-05,2]
[406818770,1772207431743,-1400.0,8.227e-05,2]
[406818771,1772207431755,-24.60100606,8.227e-05,2]
[406818772,1772207431766,-250.0,8.235e-05,2]
[406818773,1772207431776,-193.55068996,8.251e-05,2]
[406818774,1772207431788,-279.467136,8.282e-05,2]
[406818775,1772207431798,-250.0,8.397e-05,2]
[406818776,1772207431808,-250.0,8.577e-05,2]
[406818777,1772207431820,-150.0,8.593e-05,2]
[406818778,1772207431831,-150.0,8.593e-05,2]
[406818779,1772207431840,-300.0,8.593e-05,2]
[406818780,1772207431850,-226.0,8.61e-05,2]
[406818781,1772207431861,-300.0,8.617e-05,2]
[406818782,1772207431871,-300.0,8.617e-05,2]
[406818783,1772207431881,-1200.0,8.617e-05,2]
[406818784,1772207431891,-500.0,8.618e-05,2]
[406818785,1772207431901,-500.0,8.618e-05,2]
[406818787,1772207431912,-500.0,8.618e-05,2]
[406818789,1772207431922,-500.0,8.618e-05,2]
[406818790,1772207431932,-500.0,8.618e-05,2]
[406818791,1772207431942,-500.0,8.618e-05,2]
[406818792,1772207431952,-500.0,8.618e-05,2]
[406818793,1772207431962,-160.88049104,8.618e-05,2]
[406818794,1772207431972,-500.0,8.618e-05,2]
[406818795,1772207431983,-235.50645071,8.618e-05,2]
[406818796,1772207431993,-500.0,8.618e-05,2]
[406818797,1772207432003,-500.0,8.618e-05,2]
[406818798,1772207432013,-500.0,8.618e-05,2]
[406818799,1772207432024,-290.95393035,8.618e-05,2]
[406818800,1772207432048,-209.04606965,8.618e-05,2]
[406818801,1772207432059,-500.0,8.618e-05,2]
[406818802,1772207432069,-500.0,8.618e-05,2]
[406818803,1772207432079,-500.0,8.618e-05,2]
[406818804,1772207432089,-500.0,8.618e-05,2]
[406818805,1772207432099,-500.0,8.618e-05,2]
[406818806,1772207432109,-500.0,8.618e-05,2]
[406818807,1772207432119,-500.0,8.618e-05,2]
[406818808,1772207432131,-500.0,8.618e-05,2]
[406818809,1772207432141,-500.0,8.618e-05,2]
[406818810,1772207432151,-519.70978575,8.618e-05,2]
[406818811,1772207432163,-500.0,8.618e-05,2]
[406818812,1772207432173,-500.0,8.618e-05,2]
[406818813,1772207432183,-500.0,8.618e-05,2]
[406818814,1772207432193,-500.0,8.618e-05,2]
[406818815,1772207432203,-500.0,8.618e-05,2]
[406818816,1772207432212,-500.0,8.618e-05,2]
[406818817,1772207432223,-500.0,8.618e-05,2]
[406818818,1772207432234,-500.0,8.618e-05,2]
[406818819,1772207432244,-500.0,8.618e-05,2]
[406818820,1772207432254,-500.0,8.618e-05,2]
[406818821,1772207432264,-500.0,8.618e-05,2]
[406818822,1772207432274,-500.0,8.618e-05,2]
[406818823,1772207432284,-500.0,8.618e-05,2]
[406818824,1772207432294,-500.0,8.618e-05,2]
[406818825,1772207432304,-500.0,8.618e-05,2]
[406818826,1772207432314,-500.0,8.618e-05,2]
[406818827,1772207432323,-500.0,8.618e-05,2]
[406818828,1772207432333,-451.97097858,8.618e-05,2]
[406818829,1772207432343,-500.0,8.618e-05,2]
[406818830,1772207432354,-46.52228562,8.618e-05,2]
[406818831,1772207432366,-453.47771438,8.618e-05,2]
[406818832,1772207432376,-1200.0,8.618e-05,2]
[406818833,1772207432385,-93498.66928456,8.619e-05,2]
[406818834,1772207432403,-151594.70276579,8.619e-05,2]
[406818835,1772207432425,-1166.80693896,8.619e-05,2]
[406818836,1772207432437,-579.46278109,8.619e-05,2]
[406818843,1772207437677,-690.45,8.619e-05,2]
[406818844,1772207437866,-1752469.9082296,8.619e-05,2]
[406818845,1772207437877,-2500.0,8.62e-05,2]
[406818846,1772207437887,-563488.53109042,8.62e-05,2]
[406818847,1772207437900,-3626.10979711,8.62e-05,2]
[406819007,1772207439879,-9335.25072191,8.62e-05,2]
[406819008,1772207439891,-11255.36300002,8.62e-05,2]
[406819009,1772207439903,-6374.15404098,8.62e-05,2]
[406819011,1772207439914,-545.70391948,8.62e-05,2]
[406819013,1772207439926,-5116.57114232,8.62e-05,2]
[406819014,1772207440202,-400.0,8.62e-05,2]
[406819015,1772207440215,-504.06033439,8.62e-05,2]
[406819016,1772207440228,-865059.93685337,8.62e-05,2]
[406819017,1772207440237,-685.5342105,8.62e-05,2]
[406819018,1772207440247,-300.0,8.63e-05,2]
[406819019,1772207440256,-4799.34212235,8.63e-05,2]
[406819020,1772207440266,-5000.0,8.631e-05,2]
[406819021,1772207440275,-195.0,8.631e-05,2]
[406819022,1772207440284,-150.0,8.648e-05,2]
[406819023,1772207440294,-4724.25066373,8.667e-05,2]
[406819024,1772207440303,-195.0,8.667e-05,2]
[406819025,1772207440313,-195.0,8.667e-05,2]
[406819026,1772207440322,-2562.0,8.685e-05,2]
[406819027,1772207440331,-283.90698305,8.703e-05,2]
[406819028,1772207440340,-251.5508,8.71e-05,2]
[406819029,1772207440349,-150.0,8.718e-05,2]
[406819030,1772207440359,-239.6,8.719e-05,2]
[406819031,1772207440368,-1500.0,8.787e-05,2]
[406819032,1772207440378,-9999.99,8.808e-05,2]
[406819033,1772207440387,-150.99,8.808e-05,2]
[406819034,1772207440398,-999.99,8.808e-05,2]
[406819035,1772207440408,-4312.84,8.808e-05,2]
[406819036,1772207440419,-299.99,8.808e-05,2]
[406819037,1772207440429,-150.99,8.808e-05,2]
[406819038,1772207440439,-348.44,8.808e-05,2]
[406819039,1772207440448,-9999.99,8.808e-05,2]
[406819040,1772207440458,-9999.99,8.808e-05,2]
[406819041,1772207440468,-9999.99,8.808e-05,2]
[406819042,1772207440477,-500.0,8.892e-05,2]
[406819043,1772207440487,-99008.42871335,8.905e-05,2]
[406819044,1772207440496,-239.6,8.993e-05,2]
[406819046,1772207440506,-193.0,9.041e-05,2]
[406819048,1772207440515,-195.0,9.041e-05,2]
[406819050,1772207440524,-250.0,9.041e-05,2]
[406819052,1772207440534,-193.0,9.041e-05,2]
[406819054,1772207440543,-5000.0,9.041e-05,2]
[406819056,1772207440552,-1105.0,9.08e-05,2]
[406819058,1772207440563,-221.79640327,9.08e-05,2]
[406819060,1772207440577,-500.0,9.166e-05,2]
[406819062,1772207440586,-1393.4829359,9.215e-05,2]
[406819064,1772207440596,-1000.0,9.247e-05,2]
[406819066,1772207440607,-239.6,9.267e-05,2]
[406819068,1772207440617,-1095.95947684,9.4e-05,3]
[406819070,1772207440627,-500.0,9.44e-05,2]
[406819072,1772207440636,-537.20187559,9.472e-05,2]
[406819074,1772207440645,-420.0,9.479e-05,2]
[406819076,1772207440655,-1680.0,9.479e-05,2]
[406819078,1772207440663,-193.0,9.482e-05,2]
[406819080,1772207440674,-5000.0,9.482e-05,2]
[406819082,1772207440683,-195.0,9.482e-05,2]
[406819084,1772207440692,-420.0,9.493e-05,2]
[406819086,1772207440701,-151.0,9.497e-05,2]
[406819088,1772207440711,-341.15871215,9.499e-05,2]
[406819089,1772207440720,-170.9497447,9.499e-05,2]
[406819091,1772207440730,-585.28187735,9.499e-05,2]
[406819092,1772207440739,-32885.2992,9.5e-05,2]
[406819093,1772207440748,-239.6,9.541e-05,2]
[406819094,1772207440757,-255.0,9.59e-05,2]
[406819095,1772207440767,-500.0,9.714e-05,2]
[406819096,1772207440776,-239.6,9.815e-05,2]
[406819097,1772207440786,-349.333921,9.939e-05,2]
[406819099,1772207440796,-500.0,9.988e-05,2]
[406819100,1772207440805,-166.66,9.996e-05,2]
[406819101,1772207440814,-151.0,0.0001,2]
[406819102,1772207440824,-151.0,0.0001,2]
[406819103,1772207440834,-151.0,0.0001,2]
[406819104,1772207440843,-151.0,0.0001,2]
[406819105,1772207440853,-151.0,0.0001,2]
[406819106,1772207440864,-151.0,0.0001,2]
[406819107,1772207440874,-151.0,0.0001,2]
[406819108,1772207440883,-151.0,0.0001,2]
[406819109,1772207440893,-151.0,0.0001,2]
[406819110,1772207440903,-151.0,0.0001,2]